[Event "Late-Titled-Tuesday-Blitz-July-09-2024"]
[Site "Chess.com"]
[Date "2024.07.09"]
[Round "5"]
[White "GiorgianBarbosa"]
[Black "schachlana"]
[Result "0-1"]
[WhiteElo "2504"]
[BlackElo "2367"]
[TimeControl "180+1"]
[EndTime "14:54:40 PDT"]
[Termination "schachlana won by checkmate"]

1. d4 {[%clk 0:03:00]} 1... Nf6 {[%clk 0:02:54]} 2. c4 {[%clk 0:02:59.8]} 2...
g6 {[%clk 0:02:54.9]} 3. Nc3 {[%clk 0:02:59.7]} 3... Bg7 {[%clk 0:02:55.3]} 4.
e4 {[%clk 0:03:00]} 4... d6 {[%clk 0:02:56.2]} 5. Nf3 {[%clk 0:02:59.4]} 5...
O-O {[%clk 0:02:56.9]} 6. Be2 {[%clk 0:02:59.3]} 6... c5 {[%clk 0:02:56.4]} 7.
d5 {[%clk 0:02:55.4]} 7... e6 {[%clk 0:02:56.2]} 8. O-O {[%clk 0:02:55.5]} 8...
Re8 {[%clk 0:02:54.8]} 9. h3 {[%clk 0:02:52.7]} 9... exd5 {[%clk 0:02:54.6]} 10.
exd5 {[%clk 0:02:53.5]} 10... Bf5 {[%clk 0:02:50.5]} 11. Bf4 {[%clk 0:02:50.7]}
11... Ne4 {[%clk 0:02:44.7]} 12. Nxe4 {[%clk 0:02:45]} 12... Bxe4 {[%clk
0:02:37.9]} 13. Qd2 {[%clk 0:02:41.6]} 13... Na6 {[%clk 0:02:29.1]} 14. Rfe1
{[%clk 0:02:34.1]} 14... Nc7 {[%clk 0:02:26.2]} 15. Bg5 {[%clk 0:02:27]} 15...
Qd7 {[%clk 0:02:23.8]} 16. Nh2 {[%clk 0:02:21.4]} 16... b5 {[%clk 0:02:11]} 17.
Ng4 {[%clk 0:02:19.7]} 17... Qf5 {[%clk 0:01:48.6]} 18. Nh6+ {[%clk 0:02:03.2]}
18... Bxh6 {[%clk 0:01:46.8]} 19. Bxh6 {[%clk 0:02:04.1]} 19... bxc4 {[%clk
0:01:38.2]} 20. Bxc4 {[%clk 0:01:56.4]} 20... Qf6 {[%clk 0:01:24.7]} 21. Re3
{[%clk 0:01:43.5]} 21... Qh4 {[%clk 0:01:14.8]} 22. Rg3 {[%clk 0:01:35.1]} 22...
Bxg2 {[%clk 0:01:09.6]} 23. Rg4 {[%clk 0:01:26.6]} 23... Qxh3 {[%clk 0:01:05.3]}
24. Rxg2 {[%clk 0:01:26.4]} 24... Re4 {[%clk 0:01:01.5]} 25. Rg3 {[%clk
0:00:55.1]} 25... Qh5 {[%clk 0:00:49.1]} 26. Bf1 {[%clk 0:00:47.2]} 26... Rh4
{[%clk 0:00:45.5]} 27. Bg2 {[%clk 0:00:45.4]} 27... Qxh6 {[%clk 0:00:44.4]} 28.
Qa5 {[%clk 0:00:41.4]} 28... Ne8 {[%clk 0:00:37.5]} 29. Re1 {[%clk 0:00:38.5]}
29... Nf6 {[%clk 0:00:33.3]} 30. Qc7 {[%clk 0:00:32.8]} 30... Ng4 {[%clk
0:00:28.4]} 31. Rf3 {[%clk 0:00:19.9]} 31... Rh1+ {[%clk 0:00:21.5]} 32. Bxh1
{[%clk 0:00:16.8]} 32... Qh2+ {[%clk 0:00:21.7]} 33. Kf1 {[%clk 0:00:17.4]}
33... Qxh1+ {[%clk 0:00:20.6]} 34. Ke2 {[%clk 0:00:16.7]} 34... Re8+ {[%clk
0:00:20.2]} 35. Kd3 {[%clk 0:00:17]} 35... Qxf3+ {[%clk 0:00:18.1]} 36. Kd2
{[%clk 0:00:13.5]} 36... Qxf2+ {[%clk 0:00:17.4]} 37. Kd3 {[%clk 0:00:14.1]}
37... Qxe1 {[%clk 0:00:16.8]} 38. Qxd6 {[%clk 0:00:12.9]} 38... Qe2+ {[%clk
0:00:16.8]} 39. Kc3 {[%clk 0:00:12.7]} 39... Re3# {[%clk 0:00:15.8]} 0-1

[Event "Late-Titled-Tuesday-Blitz-July-09-2024"]
[Site "Chess.com"]
[Date "2024.07.09"]
[Round "5"]
[White "ArturoCaceres"]
[Black "lluiss"]
[Result "1-0"]
[WhiteElo "2399"]
[BlackElo "2206"]
[TimeControl "180+1"]
[EndTime "14:54:42 PDT"]
[Termination "ArturoCaceres won on time"]

1. f4 {[%clk 0:02:14.7]} 1... c5 {[%clk 0:02:54.5]} 2. Nf3 {[%clk 0:02:06.1]}
2... d6 {[%clk 0:02:54.4]} 3. e3 {[%clk 0:02:05.6]} 3... Nf6 {[%clk 0:02:51.5]}
4. b3 {[%clk 0:02:04]} 4... g6 {[%clk 0:02:51.3]} 5. Bb2 {[%clk 0:02:04.2]} 5...
Bg7 {[%clk 0:02:51.5]} 6. c4 {[%clk 0:01:51.8]} 6... O-O {[%clk 0:02:42.4]} 7.
Qc2 {[%clk 0:01:48.9]} 7... Nc6 {[%clk 0:02:31.5]} 8. a3 {[%clk 0:01:48.7]} 8...
Bf5 {[%clk 0:02:30.8]} 9. d3 {[%clk 0:01:48.1]} 9... e5 {[%clk 0:01:51.9]} 10.
e4 {[%clk 0:01:39.7]} 10... Bg4 {[%clk 0:01:48.6]} 11. fxe5 {[%clk 0:00:32.8]}
11... dxe5 {[%clk 0:01:31]} 12. Nbd2 {[%clk 0:00:30.9]} 12... Nd4 {[%clk
0:01:14.6]} 13. Nxd4 {[%clk 0:00:27]} 13... cxd4 {[%clk 0:01:14.6]} 14. h3
{[%clk 0:00:24.5]} 14... Bd7 {[%clk 0:01:07.7]} 15. Be2 {[%clk 0:00:18.1]} 15...
Ne8 {[%clk 0:00:52.5]} 16. O-O {[%clk 0:00:18]} 16... f5 {[%clk 0:00:52.5]} 17.
c5 {[%clk 0:00:18.3]} 17... Bc6 {[%clk 0:00:30]} 18. b4 {[%clk 0:00:18.3]} 18...
fxe4 {[%clk 0:00:20]} 19. Nxe4 {[%clk 0:00:15]} 19... Bxe4 {[%clk 0:00:18.5]}
20. dxe4 {[%clk 0:00:15.9]} 20... Nc7 {[%clk 0:00:17.5]} 21. Bc4+ {[%clk
0:00:16.3]} 21... Kh8 {[%clk 0:00:17.3]} 22. Qd3 {[%clk 0:00:17]} 22... Qe7
{[%clk 0:00:15.2]} 23. Rae1 {[%clk 0:00:14.2]} 23... Rxf1+ {[%clk 0:00:13.7]}
24. Rxf1 {[%clk 0:00:14.3]} 24... Rf8 {[%clk 0:00:13.6]} 25. Bc1 {[%clk
0:00:14.8]} 25... Ne6 {[%clk 0:00:09.2]} 26. Rxf8+ {[%clk 0:00:13.1]} 26... Bxf8
{[%clk 0:00:07.9]} 27. Qg3 {[%clk 0:00:12.7]} 27... Bg7 {[%clk 0:00:07.3]} 28.
Qg4 {[%clk 0:00:13.3]} 28... Nf4 {[%clk 0:00:03]} 29. g3 {[%clk 0:00:12.1]}
29... Nh5 {[%clk 0:00:02.2]} 30. Bg5 {[%clk 0:00:10.1]} 30... Qf8 {[%clk
0:00:01.9]} 31. Kg2 {[%clk 0:00:09.8]} 31... Bf6 {[%clk 0:00:02]} 32. Bd2 {[%clk
0:00:08.7]} 32... Bg7 {[%clk 0:00:01.8]} 33. Qe6 {[%clk 0:00:08.1]} 1-0

[Event "Late-Titled-Tuesday-Blitz-July-09-2024"]
[Site "Chess.com"]
[Date "2024.07.09"]
[Round "5"]
[White "Boundless_Strike"]
[Black "GlavkonVVS"]
[Result "1-0"]
[WhiteElo "2800"]
[BlackElo "2577"]
[TimeControl "180+1"]
[EndTime "14:54:50 PDT"]
[Termination "Boundless_Strike won on time"]

1. d4 {[%clk 0:03:00.9]} 1... Nf6 {[%clk 0:02:59.7]} 2. Nc3 {[%clk 0:02:59.2]}
2... d5 {[%clk 0:02:51.4]} 3. e4 {[%clk 0:02:58.7]} 3... dxe4 {[%clk 0:02:51.2]}
4. f3 {[%clk 0:02:54.9]} 4... exf3 {[%clk 0:02:50]} 5. Nxf3 {[%clk 0:02:54.9]}
5... Bg4 {[%clk 0:02:49.5]} 6. h3 {[%clk 0:02:54.8]} 6... Bh5 {[%clk 0:02:45.8]}
7. g4 {[%clk 0:02:54.7]} 7... Bg6 {[%clk 0:02:45.5]} 8. Ne5 {[%clk 0:02:54.9]}
8... e6 {[%clk 0:02:42.4]} 9. Bg2 {[%clk 0:02:54.2]} 9... c6 {[%clk 0:02:41.8]}
10. h4 {[%clk 0:02:54.1]} 10... Bb4 {[%clk 0:02:30.3]} 11. O-O {[%clk
0:02:52.5]} 11... Bxc2 {[%clk 0:02:16.1]} 12. Qd2 {[%clk 0:02:45.5]} 12... Be4
{[%clk 0:02:08.6]} 13. Bxe4 {[%clk 0:02:31.4]} 13... Nxe4 {[%clk 0:02:08.3]} 14.
Qf4 {[%clk 0:02:29.6]} 14... Nf6 {[%clk 0:01:53.6]} 15. g5 {[%clk 0:02:22.1]}
15... Rg8 {[%clk 0:01:36]} 16. gxf6 {[%clk 0:02:11.1]} 16... gxf6+ {[%clk
0:01:34.4]} 17. Kh1 {[%clk 0:02:04.3]} 17... Bxc3 {[%clk 0:01:13.9]} 18. bxc3
{[%clk 0:01:55.9]} 18... Qd5+ {[%clk 0:01:14.1]} 19. Rf3 {[%clk 0:01:44.4]}
19... f5 {[%clk 0:00:30.8]} 20. c4 {[%clk 0:01:35.8]} 20... Qa5 {[%clk
0:00:28.9]} 21. Bd2 {[%clk 0:01:29.7]} 21... Qd8 {[%clk 0:00:22.8]} 22. Rg1
{[%clk 0:01:14.6]} 22... Rxg1+ {[%clk 0:00:21.1]} 23. Kxg1 {[%clk 0:01:15.5]}
23... Nd7 {[%clk 0:00:20.3]} 24. Rg3 {[%clk 0:01:07]} 24... Nf6 {[%clk 0:00:18]}
25. Nf3 {[%clk 0:00:24.6]} 25... Ng4 {[%clk 0:00:14.7]} 26. Ne5 {[%clk
0:00:14.6]} 26... Nf6 {[%clk 0:00:13.4]} 27. Nf3 {[%clk 0:00:12.4]} 27... Qb6
{[%clk 0:00:11.4]} 28. Qe5 {[%clk 0:00:09.6]} 28... Ng4 {[%clk 0:00:10]} 29.
Qh8+ {[%clk 0:00:08.2]} 29... Ke7 {[%clk 0:00:08.6]} 30. Qxa8 {[%clk 0:00:06.2]}
30... Qb1+ {[%clk 0:00:08.4]} 31. Be1 {[%clk 0:00:06.8]} 31... Qxa2 {[%clk
0:00:01.9]} 32. Qxb7+ {[%clk 0:00:06.7]} 32... Kf6 {[%clk 0:00:01.8]} 33. Qxc6
{[%clk 0:00:06.4]} 1-0

[Event "Late-Titled-Tuesday-Blitz-July-09-2024"]
[Site "Chess.com"]
[Date "2024.07.09"]
[Round "5"]
[White "LoonsDeKoeben"]
[Black "vladjianu"]
[Result "0-1"]
[WhiteElo "2434"]
[BlackElo "2640"]
[TimeControl "180+1"]
[EndTime "14:54:55 PDT"]
[Termination "vladjianu won by resignation"]

1. e4 {[%clk 0:03:00.9]} 1... c6 {[%clk 0:02:57.2]} 2. Nc3 {[%clk 0:02:58.4]}
2... d5 {[%clk 0:02:56.6]} 3. Nf3 {[%clk 0:02:57.2]} 3... Bg4 {[%clk 0:02:55.8]}
4. h3 {[%clk 0:02:56.8]} 4... Bxf3 {[%clk 0:02:53.6]} 5. Qxf3 {[%clk 0:02:57.7]}
5... e6 {[%clk 0:02:54]} 6. Be2 {[%clk 0:02:52.2]} 6... Bc5 {[%clk 0:02:50.1]}
7. d3 {[%clk 0:02:51.1]} 7... Nd7 {[%clk 0:02:45.8]} 8. Bd2 {[%clk 0:02:41.8]}
8... Ne7 {[%clk 0:02:37.5]} 9. Qg3 {[%clk 0:02:40.6]} 9... Bd4 {[%clk
0:02:35.3]} 10. O-O {[%clk 0:02:23.5]} 10... O-O {[%clk 0:02:34.8]} 11. Kh1
{[%clk 0:02:09.3]} 11... Ng6 {[%clk 0:02:31.2]} 12. f4 {[%clk 0:02:05.9]} 12...
f5 {[%clk 0:02:31.5]} 13. e5 {[%clk 0:02:01.7]} 13... Qh4 {[%clk 0:02:25.4]} 14.
Qf3 {[%clk 0:01:41.9]} 14... a5 {[%clk 0:02:20.9]} 15. a4 {[%clk 0:01:37.7]}
15... Qe7 {[%clk 0:02:15.9]} 16. Nd1 {[%clk 0:01:30.3]} 16... Bb6 {[%clk
0:02:09.5]} 17. c3 {[%clk 0:01:29.8]} 17... c5 {[%clk 0:02:09.3]} 18. g3 {[%clk
0:01:21.5]} 18... Bc7 {[%clk 0:02:02.3]} 19. d4 {[%clk 0:01:17.1]} 19... Bb6
{[%clk 0:02:00.9]} 20. Qf2 {[%clk 0:01:08.2]} 20... Nb8 {[%clk 0:01:58.3]} 21.
Be3 {[%clk 0:00:57.9]} 21... cxd4 {[%clk 0:01:55.7]} 22. Bxd4 {[%clk 0:00:57.4]}
22... Bxd4 {[%clk 0:01:54.9]} 23. Qxd4 {[%clk 0:00:56.3]} 23... Rc8 {[%clk
0:01:52.2]} 24. Bb5 {[%clk 0:00:52.3]} 24... Nc6 {[%clk 0:01:49.7]} 25. Bxc6
{[%clk 0:00:42.3]} 25... bxc6 {[%clk 0:01:50.6]} 26. b4 {[%clk 0:00:29.6]} 26...
c5 {[%clk 0:01:49.2]} 27. bxc5 {[%clk 0:00:27.7]} 27... Qxc5 {[%clk 0:01:50.1]}
28. Qxc5 {[%clk 0:00:26.6]} 28... Rxc5 {[%clk 0:01:49.8]} 29. Rf2 {[%clk
0:00:25.6]} 29... Rb8 {[%clk 0:01:46.6]} 30. Kg2 {[%clk 0:00:23.4]} 30... Nf8
{[%clk 0:01:41.1]} 31. Kf3 {[%clk 0:00:08.6]} 31... Nd7 {[%clk 0:01:40.7]} 32.
Ke3 {[%clk 0:00:08.7]} 32... Kf7 {[%clk 0:01:36.6]} 33. Kd3 {[%clk 0:00:08.2]}
33... Rc4 {[%clk 0:01:36.3]} 34. Rb2 {[%clk 0:00:07.9]} 34... Nc5+ {[%clk
0:01:24.6]} 35. Kc2 {[%clk 0:00:08]} 35... Rxb2+ {[%clk 0:01:25.1]} 36. Nxb2
{[%clk 0:00:07.8]} 36... Re4 {[%clk 0:01:25.8]} 37. Rd1 {[%clk 0:00:02.9]} 37...
Re3 {[%clk 0:01:24.2]} 38. Rg1 {[%clk 0:00:01.7]} 38... h5 {[%clk 0:01:19.8]}
39. Nd1 {[%clk 0:00:01.7]} 39... Re2+ {[%clk 0:01:18.1]} 40. Kb1 {[%clk
0:00:01.6]} 40... Nxa4 {[%clk 0:01:17.5]} 41. c4 {[%clk 0:00:02]} 41... dxc4
{[%clk 0:01:17.4]} 42. Rf1 {[%clk 0:00:01.6]} 42... c3 {[%clk 0:01:17.5]} 43.
Kc1 {[%clk 0:00:02.1]} 43... Ra2 {[%clk 0:01:13.1]} 44. Rf3 {[%clk 0:00:02.5]}
44... Ra1+ {[%clk 0:00:57]} 45. Kc2 {[%clk 0:00:03.1]} 45... Ra2+ {[%clk
0:00:57.4]} 46. Kc1 {[%clk 0:00:03.4]} 46... Ra3 {[%clk 0:00:56.9]} 47. Kc2
{[%clk 0:00:03.7]} 47... Ke7 {[%clk 0:00:57.3]} 48. Nxc3 {[%clk 0:00:04.1]}
48... Nxc3 {[%clk 0:00:56]} 49. Rxc3 {[%clk 0:00:05]} 49... Rxc3+ {[%clk
0:00:56.3]} 50. Kxc3 {[%clk 0:00:05.9]} 50... Kd7 {[%clk 0:00:57.1]} 51. Kd3
{[%clk 0:00:06.2]} 51... Kc6 {[%clk 0:00:58]} 52. Kc4 {[%clk 0:00:06.3]} 52...
g6 {[%clk 0:00:57.2]} 53. h4 {[%clk 0:00:05.7]} 53... a4 {[%clk 0:00:57.7]} 54.
Kb4 {[%clk 0:00:06.2]} 54... Kd5 {[%clk 0:00:57.9]} 55. Kxa4 {[%clk 0:00:06.9]}
55... Ke4 {[%clk 0:00:58.8]} 56. Kb5 {[%clk 0:00:07.7]} 56... Kf3 {[%clk
0:00:59.7]} 57. Kc5 {[%clk 0:00:08.4]} 57... Kxg3 {[%clk 0:01:00.6]} 58. Kd6
{[%clk 0:00:09.1]} 58... Kxh4 {[%clk 0:00:58.6]} 59. Kxe6 {[%clk 0:00:10]} 59...
Kg4 {[%clk 0:00:59.5]} 60. Kf6 {[%clk 0:00:09.2]} 60... h4 {[%clk 0:01:00.4]}
61. e6 {[%clk 0:00:10.1]} 61... h3 {[%clk 0:01:01.3]} 62. e7 {[%clk 0:00:10.7]}
62... h2 {[%clk 0:01:02.2]} 63. e8=Q {[%clk 0:00:11.3]} 63... h1=Q {[%clk
0:01:03.1]} 64. Kxg6 {[%clk 0:00:10.3]} 64... Qh5+ {[%clk 0:01:02.3]} 0-1

[Event "Late-Titled-Tuesday-Blitz-July-09-2024"]
[Site "Chess.com"]
[Date "2024.07.09"]
[Round "5"]
[White "Payyappat"]
[Black "Bilan_Danila"]
[Result "0-1"]
[WhiteElo "2414"]
[BlackElo "2593"]
[TimeControl "180+1"]
[EndTime "14:54:56 PDT"]
[Termination "Bilan_Danila won by checkmate"]

1. e4 {[%clk 0:03:00.9]} 1... c6 {[%clk 0:02:58.7]} 2. d4 {[%clk 0:03:00.8]}
2... d5 {[%clk 0:02:59.1]} 3. Nc3 {[%clk 0:03:01.6]} 3... b5 {[%clk 0:02:57.7]}
4. exd5 {[%clk 0:02:54.5]} 4... b4 {[%clk 0:02:57.7]} 5. Ne4 {[%clk 0:02:32]}
5... cxd5 {[%clk 0:02:57.6]} 6. Nc5 {[%clk 0:02:30.9]} 6... Nf6 {[%clk
0:02:57.3]} 7. Nf3 {[%clk 0:02:28.8]} 7... e6 {[%clk 0:02:52.7]} 8. Bb5+ {[%clk
0:02:24.6]} 8... Bd7 {[%clk 0:02:52]} 9. Nxd7 {[%clk 0:02:23.6]} 9... Nbxd7
{[%clk 0:02:52.9]} 10. Bf4 {[%clk 0:02:15.9]} 10... Qa5 {[%clk 0:02:39.4]} 11.
Qe2 {[%clk 0:02:10.2]} 11... a6 {[%clk 0:02:03.4]} 12. Bc6 {[%clk 0:01:52.2]}
12... Rc8 {[%clk 0:01:56.5]} 13. Bb7 {[%clk 0:01:51.1]} 13... Rc4 {[%clk
0:01:19.8]} 14. b3 {[%clk 0:01:47]} 14... Rc3 {[%clk 0:01:09.9]} 15. Bxa6 {[%clk
0:01:45.7]} 15... Be7 {[%clk 0:01:00.1]} 16. Bd3 {[%clk 0:01:42.1]} 16... O-O
{[%clk 0:00:49.5]} 17. O-O {[%clk 0:01:40.6]} 17... Rfc8 {[%clk 0:00:49.4]} 18.
Ne5 {[%clk 0:01:31.4]} 18... Nxe5 {[%clk 0:00:44.4]} 19. Bxe5 {[%clk 0:01:23.9]}
19... Nd7 {[%clk 0:00:33.7]} 20. Qh5 {[%clk 0:01:17]} 20... g6 {[%clk
0:00:27.1]} 21. Qh6 {[%clk 0:01:15.8]} 21... Nxe5 {[%clk 0:00:25.7]} 22. dxe5
{[%clk 0:01:16.3]} 22... Bc5 {[%clk 0:00:22.1]} 23. h4 {[%clk 0:01:13.1]} 23...
Qd8 {[%clk 0:00:18.6]} 24. Rae1 {[%clk 0:00:58.2]} 24... Be7 {[%clk 0:00:17.5]}
25. g3 {[%clk 0:00:56.4]} 25... Bf8 {[%clk 0:00:14.1]} 26. Qf4 {[%clk
0:00:55.8]} 26... Be7 {[%clk 0:00:06.7]} 27. h5 {[%clk 0:00:53]} 27... Qf8
{[%clk 0:00:04.4]} 28. Kg2 {[%clk 0:00:51.9]} 28... Qg7 {[%clk 0:00:04]} 29. Rh1
{[%clk 0:00:50.7]} 29... g5 {[%clk 0:00:04.2]} 30. Qg4 {[%clk 0:00:50.6]} 30...
h6 {[%clk 0:00:04.5]} 31. Re2 {[%clk 0:00:47.3]} 31... R3c7 {[%clk 0:00:03.6]}
32. Rg1 {[%clk 0:00:41.8]} 32... Rc3 {[%clk 0:00:03.6]} 33. Kh2 {[%clk
0:00:41.3]} 33... Bc5 {[%clk 0:00:04]} 34. Rg2 {[%clk 0:00:39.9]} 34... Kf8
{[%clk 0:00:04.5]} 35. Qh3 {[%clk 0:00:39.2]} 35... g4 {[%clk 0:00:04.8]} 36.
Qh4 {[%clk 0:00:35.9]} 36... Be7 {[%clk 0:00:05.4]} 37. f4 {[%clk 0:00:35.8]}
37... Bxh4 {[%clk 0:00:05]} 38. gxh4 {[%clk 0:00:36.7]} 38... Rxd3 {[%clk
0:00:04.3]} 39. cxd3 {[%clk 0:00:37.4]} 39... Rc3 {[%clk 0:00:04.5]} 40. Rc2
{[%clk 0:00:34.4]} 40... g3+ {[%clk 0:00:03.8]} 41. Rxg3 {[%clk 0:00:34]} 41...
Rxc2+ {[%clk 0:00:03.9]} 42. Kh3 {[%clk 0:00:34.1]} 42... Qxg3+ {[%clk
0:00:04.8]} 43. Kxg3 {[%clk 0:00:34.2]} 43... Rxa2 {[%clk 0:00:05.7]} 44. f5
{[%clk 0:00:33.8]} 44... Rb2 {[%clk 0:00:06.1]} 45. Kf4 {[%clk 0:00:30.5]} 45...
Rxb3 {[%clk 0:00:06.1]} 46. f6 {[%clk 0:00:27.7]} 46... Rxd3 {[%clk 0:00:05.6]}
47. Kg4 {[%clk 0:00:28.6]} 47... b3 {[%clk 0:00:05.9]} 48. Kf4 {[%clk
0:00:29.5]} 48... b2 {[%clk 0:00:06.8]} 49. Kg4 {[%clk 0:00:30.4]} 49... b1=Q
{[%clk 0:00:07.7]} 50. Kf4 {[%clk 0:00:31.3]} 50... Qb4# {[%clk 0:00:08.6]} 0-1

[Event "Late-Titled-Tuesday-Blitz-July-09-2024"]
[Site "Chess.com"]
[Date "2024.07.09"]
[Round "5"]
[White "legendisback1"]
[Black "XDPS"]
[Result "1-0"]
[WhiteElo "3042"]
[BlackElo "2888"]
[TimeControl "180+1"]
[EndTime "14:54:59 PDT"]
[Termination "legendisback1 won by resignation"]

1. e4 {[%clk 0:03:00.9]} 1... c5 {[%clk 0:03:00.1]} 2. Nc3 {[%clk 0:02:56.3]}
2... e6 {[%clk 0:03:00.4]} 3. g3 {[%clk 0:02:55]} 3... a6 {[%clk 0:02:59.9]} 4.
Bg2 {[%clk 0:02:55.4]} 4... Nc6 {[%clk 0:02:57.2]} 5. Nge2 {[%clk 0:02:55.9]}
5... d6 {[%clk 0:02:57.3]} 6. O-O {[%clk 0:02:56.8]} 6... Nf6 {[%clk 0:02:57.3]}
7. d4 {[%clk 0:02:57.4]} 7... cxd4 {[%clk 0:02:57.5]} 8. Nxd4 {[%clk 0:02:58.3]}
8... Qc7 {[%clk 0:02:56.3]} 9. Be3 {[%clk 0:02:55.6]} 9... Be7 {[%clk
0:02:56.4]} 10. a4 {[%clk 0:02:55.4]} 10... Na5 {[%clk 0:02:54.5]} 11. Nde2
{[%clk 0:02:54.2]} 11... O-O {[%clk 0:02:49.3]} 12. b3 {[%clk 0:02:53.5]} 12...
Rb8 {[%clk 0:02:49.1]} 13. Ba7 {[%clk 0:02:36.7]} 13... Ra8 {[%clk 0:02:48.8]}
14. Be3 {[%clk 0:02:35.9]} 14... Rb8 {[%clk 0:02:46.9]} 15. h3 {[%clk
0:02:34.9]} 15... Bd7 {[%clk 0:02:40.1]} 16. f4 {[%clk 0:02:28]} 16... Rfc8
{[%clk 0:02:38.6]} 17. Qd2 {[%clk 0:02:20.7]} 17... Nc6 {[%clk 0:02:30.7]} 18.
g4 {[%clk 0:02:18.5]} 18... b5 {[%clk 0:02:19.8]} 19. axb5 {[%clk 0:02:13.6]}
19... axb5 {[%clk 0:02:20.7]} 20. g5 {[%clk 0:02:07.7]} 20... Ne8 {[%clk
0:02:20.8]} 21. f5 {[%clk 0:01:48.6]} 21... Ne5 {[%clk 0:02:20.3]} 22. Ra7
{[%clk 0:01:41.9]} 22... Qc6 {[%clk 0:02:03.8]} 23. Bd4 {[%clk 0:01:21.7]} 23...
b4 {[%clk 0:01:37.7]} 24. Bxe5 {[%clk 0:01:06.7]} 24... dxe5 {[%clk 0:01:22]}
25. Rxd7 {[%clk 0:00:29.1]} 25... bxc3 {[%clk 0:01:20.4]} 26. Qd3 {[%clk
0:00:25.2]} 26... Bxg5 {[%clk 0:01:19.7]} 27. fxe6 {[%clk 0:00:23.3]} 27... fxe6
{[%clk 0:01:20]} 28. Rff7 {[%clk 0:00:17.9]} 28... Bh6 {[%clk 0:01:14.7]} 29.
Ng3 {[%clk 0:00:11]} 29... Nf6 {[%clk 0:01:09.6]} 30. Rde7 {[%clk 0:00:04.5]}
30... Rf8 {[%clk 0:00:55.9]} 31. Rxf8+ {[%clk 0:00:04]} 31... Rxf8 {[%clk
0:00:56.8]} 32. Kh2 {[%clk 0:00:02.1]} 32... Bf4 {[%clk 0:00:56.5]} 33. Kh1
{[%clk 0:00:02.8]} 33... Qc5 {[%clk 0:00:34.5]} 34. Rxe6 {[%clk 0:00:02.4]}
34... Qf2 {[%clk 0:00:29.3]} 35. Nf1 {[%clk 0:00:02.8]} 35... Nh5 {[%clk
0:00:15]} 36. Qc4 {[%clk 0:00:03]} 36... Kh8 {[%clk 0:00:12.4]} 37. Qxc3 {[%clk
0:00:03.3]} 37... Ng3+ {[%clk 0:00:09.2]} 38. Nxg3 {[%clk 0:00:03.6]} 38... Bxg3
{[%clk 0:00:10.1]} 39. Rc6 {[%clk 0:00:04.2]} 39... Qe2 {[%clk 0:00:09.1]} 40.
Qxg3 {[%clk 0:00:04.1]} 1-0

[Event "Late-Titled-Tuesday-Blitz-July-09-2024"]
[Site "Chess.com"]
[Date "2024.07.09"]
[Round "5"]
[White "ninjatrick"]
[Black "RebecaJimnz"]
[Result "1-0"]
[WhiteElo "2488"]
[BlackElo "2290"]
[TimeControl "180+1"]
[EndTime "14:54:59 PDT"]
[Termination "ninjatrick won on time"]

1. Nf3 {[%clk 0:02:59.8]} 1... d5 {[%clk 0:02:59.8]} 2. e3 {[%clk 0:02:58.5]}
2... Nf6 {[%clk 0:02:58.6]} 3. c4 {[%clk 0:02:58.3]} 3... c6 {[%clk 0:02:58.2]}
4. d4 {[%clk 0:02:58.7]} 4... e6 {[%clk 0:02:58.6]} 5. Nc3 {[%clk 0:02:58.9]}
5... Nbd7 {[%clk 0:02:58.2]} 6. Bd3 {[%clk 0:02:59.1]} 6... dxc4 {[%clk
0:02:58.6]} 7. Bxc4 {[%clk 0:02:59.4]} 7... b5 {[%clk 0:02:59.3]} 8. Bd3 {[%clk
0:02:55.9]} 8... a6 {[%clk 0:02:59.8]} 9. O-O {[%clk 0:02:55.1]} 9... c5 {[%clk
0:02:59.2]} 10. b3 {[%clk 0:02:40.2]} 10... Bb7 {[%clk 0:02:58.4]} 11. Bb2
{[%clk 0:02:38.6]} 11... Be7 {[%clk 0:02:58.5]} 12. Rc1 {[%clk 0:02:36.7]} 12...
O-O {[%clk 0:02:52]} 13. Bb1 {[%clk 0:02:29.6]} 13... Bxf3 {[%clk 0:02:38.6]}
14. Qxf3 {[%clk 0:02:27.3]} 14... cxd4 {[%clk 0:02:39]} 15. exd4 {[%clk
0:02:28.2]} 15... Nb6 {[%clk 0:02:39.2]} 16. Rfd1 {[%clk 0:02:16.8]} 16... Nbd5
{[%clk 0:02:38.7]} 17. Ne4 {[%clk 0:02:15.6]} 17... Nxe4 {[%clk 0:02:32.9]} 18.
Bxe4 {[%clk 0:02:16.5]} 18... Qd7 {[%clk 0:01:58.4]} 19. h3 {[%clk 0:01:58.5]}
19... Rac8 {[%clk 0:01:53.9]} 20. Qd3 {[%clk 0:01:45.5]} 20... g6 {[%clk
0:01:44.4]} 21. a4 {[%clk 0:00:59.8]} 21... Bg5 {[%clk 0:01:05.9]} 22. Rxc8
{[%clk 0:00:59.2]} 22... Rxc8 {[%clk 0:01:06.8]} 23. axb5 {[%clk 0:00:59.8]}
23... axb5 {[%clk 0:01:07.1]} 24. g3 {[%clk 0:00:49]} 24... Nb4 {[%clk
0:00:37.8]} 25. Qe2 {[%clk 0:00:47]} 25... Bf6 {[%clk 0:00:27.6]} 26. Ba3 {[%clk
0:00:43]} 26... Nd5 {[%clk 0:00:25.6]} 27. Bb2 {[%clk 0:00:37.5]} 27... Nc3
{[%clk 0:00:22.3]} 28. Bxc3 {[%clk 0:00:37.4]} 28... Rxc3 {[%clk 0:00:22.9]} 29.
d5 {[%clk 0:00:37.8]} 29... Rxb3 {[%clk 0:00:19.9]} 30. Qc2 {[%clk 0:00:22.8]}
30... Rb2 {[%clk 0:00:17.2]} 31. dxe6 {[%clk 0:00:20.3]} 31... Qxe6 {[%clk
0:00:16.5]} 32. Qd3 {[%clk 0:00:18.8]} 32... Kg7 {[%clk 0:00:15.6]} 33. h4
{[%clk 0:00:17.1]} 33... Qb6 {[%clk 0:00:15.6]} 34. Qf3 {[%clk 0:00:16.3]} 34...
Bd4 {[%clk 0:00:14.8]} 35. Rf1 {[%clk 0:00:13.2]} 35... b4 {[%clk 0:00:14.8]}
36. h5 {[%clk 0:00:12.6]} 36... b3 {[%clk 0:00:13.1]} 37. Qf4 {[%clk 0:00:11.2]}
37... Rd2 {[%clk 0:00:03.9]} 38. Qxd2 {[%clk 0:00:11]} 1-0